Cogmind - Beta 12 @@@ ROGUE MODE // 2023.11.04 @ 11:13:22 Player: FrostySpirit Result: Smashed by cave-in Performance ------------- Evolutions (0) 0 Regions Visited (4) 800 Robots Destroyed (15) 75 Value Destroyed (345) 345 Prototype IDs (2) 40 Alien Tech Used (0) 0 Bonus (300) 300 TOTAL SCORE: 1560 Bonus ------- Aligned with FarCom 300 Cogmind --------- Core Integrity 0/250 Matter 257/300 Energy 250/250 System Corruption 5% Temperature Cool (0) Movement Rolling (80) Location -9/Mines Parts ------- > --- POWER (1) -------- Ion Engine > --- PROPULSION (2) --- Wheel Wheel > --- UTILITY (2) ------ Small Storage Unit > --- WEAPON (2) ------- Assault Rifle > --- INVENTORY (8) ---- Wheel Humpback Trap Extractor (0/4) PSU Rigger Grenade Launcher Datajack Peak State ------------ > --- POWER ------------ Ion Engine > --- PROPULSION ------- Aluminum Leg Aluminum Leg > --- UTILITY ---------- Small Storage Unit Signal Interpreter > --- WEAPON ----------- Longsword +1 > --- INVENTORY -------- Ion Engine Wheel Wheel Wheel Visual Processing Unit Trap Extractor Grenade Launcher Datajack [Rating: 14] Favorites ----------- Power Ion Engine Engine Ion Engine Propulsion Aluminum Leg Leg Aluminum Leg Wheel Wheel Utility Small Storage Unit Device PSU Rigger Storage Small Storage Unit Processor Signal Interpreter Weapon Assault Rifle Ballistic Gun Assault Rifle Launcher Grenade Launcher Slashing Weapon Longsword +1 Build | -11 -10 -10 -10 -9 ------- Run | Jun Mat Min Exi Min Slots Evolved . | . . . . . Power . | . . . . . Propulsion . | . . . . . Utility . | . . . . . Weapon . | . . . . . Parts Attached 21 | 6 1 . 9 5 Power 3 | 1 . . 1 1 Engine 3 | 1 . . 1 1 Core . | . . . . . Reactor . | . . . . . Propulsion 6 | 2 . . 2 2 Treads . | . . . . . Leg 2 | 2 . . . . Wheel 4 | . . . 2 2 Hover . | . . . . . Flight . | . . . . . Utility 5 | 1 1 . 3 . Device 1 | . . . 1 . Storage 2 | 1 . . 1 . Processor 2 | . 1 . 1 . Hackware . | . . . . . Protection . | . . . . . Artifact . | . . . . . Weapon 7 | 2 . . 3 2 Energy Gun . | . . . . . Energy Cannon . | . . . . . Ballistic Gun 5 | 2 . . 2 1 Ballistic Cannon . | . . . . . Launcher 1 | . . . . 1 Special Weapon . | . . . . . Impact Weapon . | . . . . . Slashing Weapon 1 | . . . 1 . Piercing Weapon . | . . . . . Special Melee Weapon . | . . . . . Unidentified Prototypes 2 | . . . 2 . Parts Lost 4 | . . . . 4 Power . | . . . . . Propulsion 2 | . . . . 2 Utility 1 | . . . . 1 Weapon 1 | . . . . 1 Highest Loss Streak 3 | . . . . 3 To Critical Strikes . | . . . . . Average Slot Usage (%) 93 | . 86 100 94 97 Engine 14 | . 14 14 14 14 Leg 18 | . 28 28 23 . Wheel 8 | . . . 3 26 Storage 13 | . 14 14 13 14 Processor 10 | . 1 14 14 14 Ballistic Gun 26 | . 28 28 23 26 Naked Turns . | . . . . . Heaviest Build 15 | 14 14 14 14 15 Greatest Support 20 | 20 20 20 20 20 Greatest Overweight (x) 4 | 4 . . 4 1 Average Overweight (x) . | . . . . . Largest Inventory Capacity 8 | 8 8 8 8 8 Average Capacity 7 | 7 8 8 7 8 Most Carried 8 | 6 8 8 8 8 Average Carried 7 | 3 7 8 7 7 Final Capacity 8 | 8 8 8 8 8 Final Carried 8 | 6 8 8 7 7 Class Distribution -------------------- 100% | Mutant Dominant Class ---------------- Mutant | -10/Materials Mutant | -10/Mines Mutant | -10/Exiles Mutant | -9/Mines Resources | -11 -10 -10 -10 -9 ----------- Run | Jun Mat Min Exi Min Matter Collected 697 | 179 223 . . 295 Remotely . | . . . . . Salvage Created 449 | . 229 . . 220 Parts 32 | . 20 . . 12 Haulers Intercepted . | . . . . . Recyclers Shooed . | . . . . . Parts Field Recycled . | . . . . . Retrieved Matter . | . . . . . Parts Self-Destructed . | . . . . . Prevented . | . . . . . Kills | -11 -10 -10 -10 -9 ------- Run | Jun Mat Min Exi Min Combat Hostiles Destroyed 13 | . 7 . . 6 Guns 11 | . 7 . . 4 AOE 2 | . . . . 2 Classes Destroyed 6 | . 3 . . 3 Worker 3 | . . . . 3 Watcher 1 | . 1 . . . Swarmer 3 | . 3 . . . Grunt 6 | . 4 . . 2 Brawler 2 | . . . . 2 Assembled 2 | . . . . 2 Best Kill Streak 2 | . 2 . . 2 Combat Bots Only 2 | . 2 . . 2 Max Kills in Single Turn 1 | . 1 . . 1 Gunslinging . | . . . . . Exploded 1 | . . . . 1 Melee . | . . . . . Uniques/NPCs Destroyed . | . . . . . Combat | -11 -10 -10 -10 -9 -------- Run | Jun Mat Min Exi Min Damage Taken 916 | . 290 . . 626 Core 254 | . 56 . . 198 Absorbed by Shields . | . . . . . Core Remaining (%) 100 | 100 . . . . Volleys Fired 49 | . 20 . . 29 Largest 2 | . 2 . . 2 Hottest 50 | . 40 . . 50 Shots Fired 98 | . 41 . . 57 Gun 94 | . 41 . . 53 Cannon . | . . . . . Launcher 4 | . . . . 4 Special . | . . . . . Kinetic 94 | . 41 . . 53 Thermal . | . . . . . Explosive 4 | . . . . 4 Electromagnetic . | . . . . . Robot Hit Streak 8 | . 4 . . 8 Robot Miss Streak 3 | . 3 . . 3 Penetration Max . | . . . . . Secondary Targets . | . . . . . Shots Hit Robots 55 | . 22 . . 33 Core Hits 26 | . 11 . . 15 Critical Kills 1 | . . . . 1 Critical Parts Destroyed . | . . . . . Critical Strikes 1 | . . . . 1 Destroy 1 | . . . . 1 Melee Attacks . | . . . . . Impact . | . . . . . Slashing . | . . . . . Piercing . | . . . . . Sneak Attacks . | . . . . . Combat Hostiles . | . . . . . Follow-up Attacks . | . . . . . Damage Inflicted 827 | . 295 . . 532 Guns 685 | . 295 . . 390 Cannons . | . . . . . Explosions 142 | . . . . 142 Melee . | . . . . . Ramming . | . . . . . Kinetic 685 | . 295 . . 390 Thermal . | . . . . . Explosive 142 | . . . . 142 Electromagnetic . | . . . . . Impact . | . . . . . Slashing . | . . . . . Piercing . | . . . . . Highest Corruption 2 | . 2 2 2 2 Average Corruption 2 | . 2 2 2 2 Corruption Purged . | . . . . . Corruption Blocked . | . . . . . Effects 16 | . 4 2 6 4 Message Errors 3 | . . 1 1 1 Matter Fused 3 | . 1 . 2 . Energy Discharges 5 | . 1 1 1 2 Data Loss (minor) 2 | . 1 . 1 . Data Loss (major) 1 | . . . 1 . Misfires 1 | . 1 . . . Weapon Failures 1 | . . . . 1 Overload Shots . | . . . . . Overflow Damage . | . . . . . Projectiles . | . . . . . Explosions . | . . . . . Melee . | . . . . . Knockbacks . | . . . . . Impact . | . . . . . Kinetic . | . . . . . Secondary . | . . . . . Self-Inflicted Damage 105 | . . . . 105 Shots 3 | . . . . 3 Rammed . | . . . . . Targets Rammed . | . . . . . Kicked . | . . . . . Crushed . | . . . . . Highest Temperature 5 | . 5 . . 2 Average Temperature 4 | . 5 . . 2 Received Heat Transfer 194 | . 96 . . 98 Siege Activations . | . . . . . Robots Corrupted . | . . . . . Combat Hostiles . | . . . . . Parts Fried . | . . . . . Impact Corruptions . | . . . . . Robots Melted . | . . . . . Combat Hostiles . | . . . . . Parts Melted . | . . . . . Heat Transferred . | . . . . . Parts Sabotaged . | . . . . . Parts Stolen . | . . . . . Parts Stripped . | . . . . . Power Chain Reactions . | . . . . . Missiles Intercepted . | . . . . . Alert | -11 -10 -10 -10 -9 ------- Run | Jun Mat Min Exi Min Peak Influence 220 | . 220 85 . 152 Initial 85 | . . 85 . . Average 85 | . 103 85 . 92 Maximum Alert Level 1 | . 1 . . . Low Security (%) 97 | 100 92 100 . 100 Level 1 2 | . 7 . . . Level 2 . | . . . . . Level 3 . | . . . . . Level 4 . | . . . . . Level 5 . | . . . . . High Security . | . . . . . Max Security . | . . . . . Squads Dispatched 3 | . 3 . . . Investigation 1 | . 1 . . . Extermination . | . . . . . Reinforcement 2 | . 2 . . . Assault . | . . . . . Garrison . | . . . . . Intercept . | . . . . . Searches Triggered . | . . . . . Construction Impeded . | . . . . . Haulers Reinforced . | . . . . . Active Scanning Responses . | . . . . . Cargo Convoy Interrupts . | . . . . . Stealth | -11 -10 -10 -10 -9 --------- Run | Jun Mat Min Exi Min Distress Signals . | . . . . . Communications Jammed . | . . . . . Distress Signals . | . . . . . Times Spotted 23 | . 11 . . 12 Peak Tracking Total 4 | . 4 . . 3 Tactical Retreats . | . . . . . Traps | -11 -10 -10 -10 -9 ------- Run | Jun Mat Min Exi Min Traps Triggered 2 | . 2 . . . Indirectly . | . . . . . Trap Hack Attempts . | . . . . . Triggered . | . . . . . Disarmed . | . . . . . Reprogrammed . | . . . . . Reused . | . . . . . Traps Extracted . | . . . . . Installed . | . . . . . Triggered . | . . . . . Machines | -11 -10 -10 -10 -9 ---------- Run | Jun Mat Min Exi Min Machines Disabled 2 | . 1 . . 1 Max in Single Turn 1 | . 1 . . 1 Machines Repaired . | . . . . . Machines Sabotaged . | . . . . . Overloaded Fab Kills . | . . . . . Hacking | -11 -10 -10 -10 -9 --------- Run | Jun Mat Min Exi Min Machines Accessed 2 | . 2 . . . Terminals 2 | . 2 . . . Fabricators . | . . . . . Repair Stations . | . . . . . Recycling Units . | . . . . . Scanalyzers . | . . . . . Garrison Access . | . . . . . Total Hacks 5 | . 5 . . . Successful 2 | . 2 . . . Failed 3 | . 3 . . . Catastrophic 2 | . 2 . . . Database Lockouts . | . . . . . Manual 5 | . 4 . 1 . Terminals 5 | . 5 . . . Fabricators . | . . . . . Repair Stations . | . . . . . Recycling Units . | . . . . . Scanalyzers . | . . . . . Garrison Access . | . . . . . Terminal Hacks 2 | . 2 . . . Record 1 | . 1 . . . Branch Access Points 1 | . 1 . . . Fabricator Hacks . | . . . . . Repair Station Hacks . | . . . . . Recycling Unit Hacks . | . . . . . Scanalyzer . | . . . . . Garrison Access Hacks . | . . . . . Unauthorized Hacks . | . . . . . Terminals . | . . . . . Fabricators . | . . . . . Repair Stations . | . . . . . Recycling Units . | . . . . . Scanalyzers . | . . . . . Garrison Access . | . . . . . Data Cores Recovered . | . . . . . Used . | . . . . . Hacking Detections 2 | . 2 . . . Full Trace Events 1 | . 1 . . . Feedback Events . | . . . . . Feedback Blocked . | . . . . . Robot Schematics Acquired . | . . . . . Robots Built . | . . . . . Authchips . | . . . . . Time . | . . . . . Total Robot Build Rating . | . . . . . Part Schematics Acquired . | . . . . . Parts Built . | . . . . . Authchips . | . . . . . Time . | . . . . . Total Part Build Rating . | . . . . . Parts Repaired . | . . . . . Time . | . . . . . Parts Recycled . | . . . . . Recycled Matter . | . . . . . Retrieved Matter . | . . . . . Retrieved Components . | . . . . . Parts Scanalyzed . | . . . . . Part Schematics Acquired . | . . . . . Parts Damaged . | . . . . . Bothacking | -11 -10 -10 -10 -9 ------------ Run | Jun Mat Min Exi Min Used RIF Installer . | . . . . . Robots Hacked . | . . . . . Non-combat . | . . . . . Combat . | . . . . . Robot Hacks Applied . | . . . . . Relay Couplers Released . | . . . . . Fabnet Peak Effective % . | . . . . . Robots Rewired . | . . . . . Allies Hacked . | . . . . . Hacks Repelled . | . . . . . Allies | -11 -10 -10 -10 -9 -------- Run | Jun Mat Min Exi Min Total Allies . | . . . . . Largest Group . | . . . . . Highest-Rated Group . | . . . . . Highest-Rated Ally . | . . . . . Total Orders . | . . . . . Ally Attacks . | . . . . . Total Damage . | . . . . . Kills . | . . . . . Allies Corrupted . | . . . . . Allies Melted . | . . . . . Intel | -11 -10 -10 -10 -9 ------- Run | Jun Mat Min Exi Min Robot Analysis Total . | . . . . . Derelict Logs Recovered 1 | . . . . 1 Drone Launches . | . . . . . Drone Recoveries . | . . . . . Exploration | -11 -10 -10 -10 -9 ------------- Run | Jun Mat Min Exi Min Turns Passed 1431 | 115 376 105 457 378 Spaces Moved 1116 | 66 253 88 384 325 Core 31 | 26 . . 5 . Treads . | . . . . . Legs 683 | 40 253 88 302 . Wheels 402 | . . . 77 325 Hover . | . . . . . Flight . | . . . . . Fastest Speed 50 | 50 120 120 80 80 Average Speed 107 | 141 120 120 113 80 Slowest Speed 250 | 250 120 120 250 95 Overloaded Moves . | . . . . . Propulsion Burnouts . | . . . . . Robots Hopped . | . . . . . Cave-ins Triggered 1 | . . . . 1 Exploration Rate (%) 33 | 4 35 17 62 48 Regions Visited 4 Branch Regions 3 Pre-discovered Areas 1 | . . . . 1 Known Exits Taken 3 | . 1 1 1 . Unknown Exits Taken 1 | 1 . . . . Scrap Searched 1 | . . . . 1 Spaces Dug . | . . . . . Terrain Destroyed 34 | . . . . 34 Melee . | . . . . . Projectile . | . . . . . AOE 34 | . . . . 34 Terrain Rammed . | . . . . . Walls Destroyed . | . . . . . Machines Disabled . | . . . . . Actions | -11 -10 -10 -10 -9 --------- Run | Jun Mat Min Exi Min Total 1247 | 84 287 87 406 383 Wait 33 | 7 4 . . 22 Move 1112 | 65 252 87 383 325 Hop . | . . . . . Pick Up 18 | 6 6 . 5 1 Fast Attach 13 | 6 1 . 5 1 Attach 5 | . . . 4 1 Detach 1 | . . . 1 . Swap 3 | . . . . 3 Drop 13 | . 4 . 8 1 Fire 49 | . 20 . . 29 Melee . | . . . . . Ram . | . . . . . Kick . | . . . . . Crush . | . . . . . Escape Stasis . | . . . . . Rewire . | . . . . . Trap . | . . . . . Miscellaneous . | . . . . . Route ------- -11/Junkyard -10/Materials -10/Mines -10/Exiles (discovered 2 exits: *Min x2) -9/Mines History --------- Turn | Location | Event 5 | -11/Junkyard | Discovered new exit (range 15) 116 | -11/Junkyard | Entered Materials 155 | -10/Materials | Identified exit to Mines 307 | -10/Materials | Build established: Mutant 492 | -10/Materials | Entered Mines 551 | -10/Mines | Deemed a non-threat by the Exiles lab entrance 551 | -10/Mines | Discovered new exit (range 5) 555 | -10/Mines | Identified exit to Exiles 597 | -10/Mines | Entered Exiles 613 | -10/Exiles | Discovered new exit (range 15) 630 | -10/Exiles | Met 8R-AWN 647 | -10/Exiles | Met EX-HEX 689 | -10/Exiles | Met EX-BIN 710 | -10/Exiles | Aligned with FarCom system 711 | -10/Exiles | Given EX-Vault access code 740 | -10/Exiles | Opened EX-Vault 753 | -10/Exiles | Found Prototype Slashing Weapon 753 | -10/Exiles | Identified Longsword +1 786 | -10/Exiles | Found Prototype Device 786 | -10/Exiles | Identified PSU Rigger 837 | -10/Exiles | Warned to stay clear of 0b10 Research branches 875 | -10/Exiles | Met EX-DEC 936 | -10/Exiles | Discovered new exit (range 14) 1015 | -10/Exiles | Identified exit to Mines 1054 | -10/Exiles | Left Exiles lab with PSU Rigger 1054 | -10/Exiles | Entered Mines 1188 | -9/Mines | Learned location of Zion (-7) 1339 | -9/Mines | Assembled infested the area 1344 | -9/Mines | Assisted by a Guerilla fighting off Assembled 1405 | -9/Mines | Core integrity fell below 50% 1433 | -9/Mines | Crushed by falling debris 1433 | -9/Mines | Smashed by cave-in Last Messages --------------- 01368_ The unstable cave ceiling collapses. 01374_ T-07 Excavator is excavating. 01398_ The unstable cave ceiling collapses. 01398_ Wheel destroyed. 01407_ The unstable cave ceiling collapses. 01407_ as-32689 destroyed. 01413_ Destroyed Asb. Hover Unit. 01419_ System corrupted: Assault Rifle jammed. 01419_ as-31585 destroyed. 01421_ System corrupted: Energy discharge (-60). 01425_ The unstable cave ceiling collapses. 01426_ Acquired 2 matter. 01427_ The unstable cave ceiling collapses. 01427_ U-05 Engineer lays Concrete. 01427_ Assault Rifle destroyed. 01428_ U-05 Engineer lays Concrete. 01430_ The unstable cave ceiling collapses. 01433_ Crushed by falling debris. 01433_ Visual Processing Unit destroyed. 01433_ System corrupted by crushing effect (+3). Map ----- +----------------------------------------------------+ | ???????????????????????????????????????????? | | ???????????????????????????????????????????? | | ???????????????????????????????????????????? | | ???????????????????????????????????????????? | | ???????????????????????????????????????????? | | ???????????????????????????????????????????? | | ???????????????????????????????????????????? | | ???????????????????????????????????????????? | | ??????????????????????#######??????????????? | | ??????????????????##### #??????????????? | | ??????????????????# #??????????????? | | ??????????????????# #### #??????????????? | | ??????????????????# ###????????????????? | | ??????????????????# ####??????????????????? | | ??????????????????# #?????????????????????? | | ??????????????????# #?????????????????????? | | ??????????????????# #?????????????????????? | | ?????????????######% ####??????????????????? | | ???????? ????# #??????????????????? | | ????????? # # # ########???????????? | | ????????????# # a #???????????? | | ????????? # #???????????? | | ????????# #??# # ## #### ##??????????? | | ????????## % % ##?# ##?????????? | | ???????? # ## # #%## ### #####?????? | | ????????# # # @ # ##????? | | ????????# #### ?# # u # ## ##???? | | ????????# ##?##?# ### # ### ] #???? | | ????????? #???# # ##?# !#???? | | ?????????# ????###### # #??# ## ] #???? | | ?????????# #????????# # #?#??# #### #???? | | ???????## ##???????###%########??# #???? | | ####### ##????????#" ? #?????# !##???? | | #????????# #?# #?????##%#????? | | ?? """ ########## ### ##?????# #????? | | ????# """ ##????# #????? | | ???## """ ######### #### #????#*#????? | | ??## #???????# #??## ##???# ###??? | | ### #???????# #???# ##### ##?? | | ######??# #???## #?? | | #??# #????# #?? | | ## #### #??# #????# #?? | | #######???????? #????## ##?? | | ##?????????????###?????## #??? | | ##?????????????????????# ### #??? | | #????????????????????# ##?# #??? | | #???????????????????# ##??# #??? | | #####???????????????????#####???# #??? | | ##??????????????????????????????## #??? | | #??????????????????????????????## #??? | +----------------------------------------------------+ Best States ------------- Heat Dissipation 25 Energy Generation 10 Energy Capacity 250 Matter Stores 300 Matter Capacity 300 Sight Range 18 Terrain Scan Density 10 Evasion (%) 55 Item Schematics ----------------- None Robot Schematics ------------------ None Fabricated ------------ Nothing Alien Tech Used ----------------- None Achievements -------------- None Challenges ------------ None Game ------ Seed GuidedDisposableCharger Manual? 0 Play Time 00:18:24 Cumulative 27.0 hours Start 2023.11.04 @ 10:45:57 End 2023.11.04 @ 11:13:22 Sessions 1 Manual Loads 0 Difficulty Rogue Special Mode None Game No. 45 Rogue 45 Adventurer 0 Explorer 0 Win Type - Total 0 Types 0/0/0/0/0/0/0/0/0 Lore% 20 Gallery% 35 Achievement% 23 Wizard Run 0 Options --------- ASCII 0 Keyboard 1 Movement Numpad Keybinds 0 Fullscreen 1 Font 18/TerminusBold Map View 76x50 Tactical HUD 1 Map Filters NONE Filters NONE Steam 1 RUN: f21fa5e3-11b6-4d60-ab74-a6dec939a888